fUST/lending_fUST_20240924
["ID","MTS","AMOUNT","RATE_DAILY","PERIOD"]
[339034177,1727153446016,-420.0,0.00031017,2]
[339034178,1727153446026,-707.0506,0.00031481,30]
[339034179,1727153446035,-26442.87166306,0.00031615,15]
[339034180,1727153446044,-4800.45998451,0.00031616,15]
[339034181,1727153446053,-420.0,0.00031616,2]
[339034182,1727153446062,-3878.84,0.00031763,2]
[339034183,1727153446072,-306.0,0.00032186,2]
[339034184,1727153446081,-306.0,0.00032186,2]
[339034185,1727153446090,-352.5505511,0.00032186,2]
[339034186,1727153446099,-153.0,0.00032186,2]
[339034187,1727153446108,-153.0,0.0003246,2]
[339034188,1727153446118,-153.0,0.0003246,2]
[339034189,1727153446127,-153.9401816,0.0003246,2]
[339034190,1727153446136,-153.0,0.0003246,2]
[339034191,1727153446145,-153.0,0.0003246,2]
[339034192,1727153446154,-153.0,0.0003246,2]
[339034193,1727153446164,-153.0,0.0003246,2]
[339034194,1727153446174,-153.0,0.0003246,2]
[339034195,1727153446183,-307.8132801,0.00032462,2]
[339034196,1727153446191,-500.0,0.000325,5]
[339034197,1727153446204,-500.0,0.0003265,5]
[339034198,1727153446213,-461.34111712,0.0003265,5]
[339034199,1727153446223,-501.30256318,0.0003265,5]
[339034200,1727153446233,-500.0,0.0003265,5]
[339034201,1727153446242,-500.0,0.000327,5]
[339034202,1727153446252,-187175.8646921,0.00033,120]
[339034203,1727153446416,-403.16620062,0.00033,120]
[339034206,1727154019009,680.14593677,0.0002,2]
[339034207,1727154098826,150.0,0.0002,2]
[339034208,1727154099387,150.479018,0.00021,2]
[339034213,1727154332233,-302.36509981,0.00023,2]
[339034214,1727154332256,-302.36509981,0.0002323,2]
[339034215,1727154332278,-209.74087321,0.0002346,2]
[339034216,1727154335123,-92.6242266,0.0002346,2]
[339034217,1727154335146,-165.66527129,0.0002369,2]
[339034218,1727154335167,-502.13,0.00025,8]
[339034219,1727154335189,-162.56901,0.0002698,2]
[339034220,1727154335211,-250.0,0.0002723,2]
[339034221,1727154335232,-272.37073054,0.00027397,2]
[339034230,1727154432117,-166.666666,0.00027113,2]
[339034231,1727154432138,-365.013612,0.00027397,2]
[339034232,1727154432159,-164.05279574,0.00027561,2]
[339034233,1727154432179,-164.05279574,0.00027621,2]
[339034234,1727154432200,-300.0,0.00027641,2]
[339034235,1727154432221,-2592.10573079,0.00027642,2]
[339034236,1727154432248,-3997.37502856,0.00027642,2]
[339034237,1727154440110,-1252.45924923,0.00027642,2]
[339034238,1727154441357,-756.28005652,0.00027642,2]
[339034239,1727154441382,-252.119658,0.00027661,2]
[339034240,1727154441403,-164.05279574,0.00027681,2]
[339034241,1727154441425,-449.64820117,0.00027732,2]
[339034242,1727154450091,-243.49416928,0.00027732,2]
[339034246,1727154561155,-500.0,0.00026,2]
[339034247,1727154561176,-177.10887055,0.00026,2]
[339034248,1727154561197,-211.05032469,0.00027732,2]
[339034310,1727154638173,-2353.13356956,0.00027732,2]
[339034311,1727154638183,-413.0319121,0.00027733,2]
[339034312,1727154638192,-160.871418,0.00027972,2]
[339034313,1727154638202,-160.871418,0.00028007,2]
[339034314,1727154638211,-160.871418,0.00028042,2]
[339034315,1727154638220,-160.871418,0.00028077,2]
[339034316,1727154638229,-160.871418,0.00028112,2]
[339034317,1727154638239,-173.628492,0.00028323,2]
[339034318,1727154638252,-193.175656,0.00028843,2]
[339034319,1727154638262,-300.0,0.00028843,2]
[339034320,1727154638271,-193.175656,0.00028919,2]
[339034321,1727154638280,-166.666666,0.00028961,2]
[339034322,1727154638289,-193.175656,0.00028996,2]
[339034323,1727154638298,-193.175656,0.00029072,2]
[339034324,1727154638308,-193.175656,0.00029149,2]
[339034325,1727154638317,-193.175656,0.00029225,2]
[339034326,1727154638326,-193.175656,0.00029302,2]
[339034327,1727154638335,-193.175656,0.00029379,2]
[339034328,1727154638344,-226.46,0.0003,2]
[339034329,1727154638353,-500.0,0.0003,14]
[339034330,1727154638368,-500.0,0.0003,14]
[339034331,1727154638383,-500.0,0.0003,14]
[339034332,1727154638393,-500.0,0.0003,14]
[339034333,1727154638406,-500.0,0.0003,10]
[339034334,1727154638415,-151.0,0.0003,120]
[339034335,1727154638425,-151.0,0.0003,120]
[339034336,1727154638435,-851.80030124,0.0003,2]
[339034337,1727154638445,-166.666666,0.00030809,2]
[339034338,1727154638455,-298.0,0.00031,2]
[339034339,1727154638465,-22990.48,0.00031,15]
[339034340,1727154638474,-420.0,0.00031123,2]
[339034341,1727154638483,-784.96432325,0.00031285,2]
[339034342,1727154638493,-6729.3679415,0.00031455,2]
[339034343,1727154638509,-6729.3679415,0.0003159,2]
[339034344,1727154638519,-1002.093521,0.000319,14]
[339034345,1727154638527,-6729.3679415,0.00031945,2]
[339034346,1727154638538,-702.91416194,0.00031988,2]
[339034347,1727154638547,-500.0,0.00031989,2]
[339034348,1727154638556,-213.9535281,0.00031989,2]
[339034349,1727154638566,-526.62823597,0.00031989,2]
[339034350,1727154638576,-49740.4615982,0.0003199,4]
[339034351,1727154638585,-47845.52,0.00032,10]
[339034352,1727154638595,-6729.3679417,0.00032116,2]
[339034353,1727154638605,-153.0,0.00032178,2]
[339034354,1727154638614,-153.0,0.00032178,2]
[339034355,1727154638624,-153.0,0.00032178,2]
[339034356,1727154638633,-153.0,0.00032186,2]
[339034357,1727154638643,-153.0,0.00032186,2]
[339034358,1727154638652,-153.0,0.00032186,2]
[339034359,1727154638661,-153.0,0.00032186,2]
[339034360,1727154638669,-153.0,0.00032186,2]
[339034361,1727154638679,-153.0,0.00032186,2]
[339034362,1727154638689,-306.0000001,0.00032201,2]
[339034363,1727154638698,-1000.0,0.000324,14]
[339034364,1727154638708,-153.0,0.0003249,2]
[339034365,1727154638719,-153.0,0.0003249,2]
[339034366,1727154638728,-153.0,0.0003249,2]
[339034367,1727154638738,-153.0,0.0003249,2]
[339034368,1727154638747,-153.0,0.0003249,2]
[339034369,1727154638756,-153.0,0.0003249,2]
[339034370,1727154638766,-153.0,0.0003249,2]
[339034371,1727154638775,-153.0,0.0003249,2]
[339034372,1727154638784,-153.0,0.0003249,2]
[339034373,1727154638918,-153.0,0.0003249,2]
[339034374,1727154638929,-153.0,0.0003249,2]
[339034375,1727154638938,-306.0,0.0003249,2]
[339034376,1727154638951,-153.0,0.0003249,2]
[339034377,1727154638960,-153.0,0.0003249,2]
[339034378,1727154638969,-153.0,0.0003249,2]
[339034379,1727154638978,-154.334,0.00032556,2]
[339034380,1727154638987,-525.0,0.00032556,2]
[339034381,1727154639000,-1285.69,0.00032556,2]
[339034382,1727154639009,-784.96432318,0.00032801,2]
[339034383,1727154639019,-169.10906836,0.00032873,2]
[339034384,1727154639028,-1000.0,0.000329,14]
[339034385,1727154639038,-1605.41326145,0.000329,2]
[339034386,1727154639047,-169.10906832,0.00032918,2]
[339034387,1727154639056,-169.10906832,0.00032962,2]
[339034388,1727154639066,-6859.13944195,0.0003297,15]
[339034389,1727154639075,-13221.43583153,0.0003297,15]
[339034390,1727154639084,-149221.384794,0.0003297,5]
[339034391,1727154639094,-211.51879168,0.0003297,5]
[339034392,1727154639103,-501.25267831,0.00032973,5]
[339034393,1727154639113,-49740.4615982,0.0003298,5]
[339034394,1727154639122,-151.0,0.0003298,14]
[339034395,1727154639131,-151.0,0.0003298,14]
[339034396,1727154639140,-151.0,0.0003298,14]
[339034397,1727154639150,-151.0,0.0003298,14]
[339034398,1727154639160,-151.0,0.0003298,14]
[339034399,1727154639169,-151.0,0.0003298,14]
[339034400,1727154639179,-151.0,0.0003298,14]
[339034401,1727154639188,-151.862581,0.0003298,14]
[339034402,1727154639198,-36374.88401525,0.0003298,5]
[339034509,1727154643050,-58.13628509,0.00027,120]
[339034518,1727154646106,-192.99657491,0.00027,120]
[339034519,1727154646116,-161.479361,0.00031078,2]
[339034520,1727154646125,-161.479361,0.00031168,2]
[339034521,1727154646134,-149.86671779,0.00031258,2]
[339034522,1727155087119,1731.57633655,0.000221,2]
[339034523,1727155114916,3268.43,0.00022001,2]
[339034526,1727155446426,350.0,0.00022,4]
[339034527,1727155505575,350.0,0.00022,3]
[339034528,1727155545157,-190.681245,0.00026362,2]
[339034529,1727155545177,-195.644586,0.00027376,2]
[339034530,1727155545198,-364.694432,0.00027397,2]
[339034531,1727155545218,-250.0,0.00027472,2]
[339034532,1727155545240,-178.85162,0.00027489,2]
[339034533,1727155545261,-252.1196589,0.00027536,2]
[339034534,1727155545282,-231.471019,0.00027566,2]
[339034535,1727155545303,-215.0326872,0.0002767,2]
[339034536,1727155595089,-152.76152445,0.00026362,2]
[339034537,1727155595110,-17.52820205,0.00027203,2]
[339034538,1727155628115,-140.24558495,0.00027203,2]
[339034539,1727155628136,-476.87156049,0.0002767,2]
[339034540,1727155630104,-979.63106911,0.0002767,2]
[339034541,1727155630126,-162.892886,0.00027808,2]
[339034542,1727155630148,-162.892886,0.00027884,2]
[339034543,1727155630168,-157.773787,0.00027944,2]
[339034544,1727155630190,-162.892886,0.0002796,2]
[339034545,1727155630212,-162.892886,0.00028036,2]
[339034546,1727155630234,-162.892886,0.00028113,2]
[339034547,1727155630255,-162.892886,0.00028189,2]
[339034548,1727155630276,-231.471019,0.00028251,2]
[339034549,1727155630297,-162.892886,0.00028265,2]
[339034550,1727155630319,-162.892886,0.00028342,2]
[339034551,1727155630339,-162.892886,0.00028418,2]
[339034552,1727155630360,-162.892886,0.00028494,2]
[339034553,1727155630384,-162.892886,0.0002857,2]
[339034554,1727155630406,-162.892886,0.00028647,2]
[339034555,1727155630426,-157.773787,0.00028686,2]
[339034556,1727155630448,-162.892886,0.00028723,2]
[339034557,1727155630470,-162.892886,0.00028799,2]
[339034558,1727155630492,-162.892886,0.00028875,2]
[339034559,1727155630513,-300.0,0.00028935,2]
[339034560,1727155630535,-300.0,0.00028935,2]
[339034561,1727155630555,-180.16302788,0.00028935,2]
[339034562,1727155644125,-51.30799112,0.00028935,2]
[339034563,1727155644147,-162.892886,0.00028952,2]
[339034564,1727155644168,-162.892886,0.00029028,2]
[339034565,1727155644191,-162.892886,0.00029104,2]
[339034566,1727155644211,-162.892886,0.00029181,2]
[339034567,1727155644232,-162.892886,0.00029257,2]
[339034568,1727155644253,-157.773787,0.00029428,2]
[339034569,1727155644276,-655.40013462,0.000299,2]
[339034570,1727155644296,-500.0,0.00029973,5]
[339034571,1727155644316,-425.93390606,0.00029973,5]
[339034572,1727155644336,-501.25267831,0.00029973,5]
[339034573,1727155644357,-175.60933321,0.00029999,2]
[339034574,1727155653120,-43.03043197,0.00029999,2]
[339034575,1727155653281,-500.0,0.00029999,2]
[339034576,1727155653304,-3000.0,0.0003,37]
[339034577,1727155653325,-342.47538354,0.0003,3]
[339034579,1727155752116,-254.04,0.00023443,2]
[339034580,1727155752137,-500.0,0.00024,2]
[339034581,1727155764101,-878.47329858,0.00025,5]
[339034611,1727155832092,-300.0,0.00027559,2]
[339034612,1727155832105,-300.0,0.00027559,2]
[339034614,1727155832115,-1835.52,0.0002756,2]
[339034647,1727155838362,-596.29,0.0002756,2]
[339034663,1727155846336,-527.80066444,0.0002756,2]
[339034664,1727155846375,-18.12569786,0.0002756,2]
[339034679,1727156737120,-233.86746,0.00027,120]
[339034680,1727156737141,-170.710315,0.00027096,2]
[339034681,1727156737163,-157.773787,0.00027183,2]
[339034682,1727156737183,-398.374328,0.00027347,2]
[339034683,1727156737204,-309.66973,0.0002737,2]
[339034684,1727156737225,-384.993031,0.00027397,2]
[339034685,1727156737246,-93.21259825,0.00027437,2]
[339034686,1727156741115,-206.78740175,0.00027437,2]
[339034687,1727156741137,-1753.1098555,0.00027439,2]
[339034688,1727156815230,-238.39498047,0.00027439,2]
[339034690,1727156827113,-3078.35868767,0.00027439,2]
[339034691,1727156838106,-1564.7864979,0.00027439,2]
[339034693,1727156847212,-436.35184786,0.00027439,2]
[339034694,1727156847235,-182.0366501,0.00027467,2]
[339034695,1727156847257,-246.19586797,0.0002756,2]
[339034696,1727156847279,-251.89687395,0.00027577,2]
[339034697,1727156852110,-500.0,0.00025,30]
[339034698,1727156852131,-608.73625255,0.00027577,2]
[339034699,1727156852152,-300.0,0.00027669,2]
[339034700,1727156852173,-300.0,0.0002767,2]
[339034701,1727156852195,-170.411827,0.00027671,2]
[339034702,1727156852221,-170.411827,0.00027747,2]
[339034703,1727156852244,-170.411827,0.00027823,2]
[339034704,1727156852265,-170.411827,0.00027899,2]
[339034705,1727156852285,-500.0,0.000279,7]
[339034706,1727156852304,-500.0,0.000279,7]
[339034707,1727156852325,-172.218631,0.00027938,2]
[339034708,1727156852346,-170.411827,0.00027975,2]
[339034709,1727156852367,-346.86372904,0.00028032,2]
[339034712,1727156973144,-190.6812464,0.00026552,2]
[339034713,1727156973167,-172.473749,0.00027336,2]
[339034714,1727156973188,-302.36509981,0.00027892,10]
[339034715,1727156973210,-250.0,0.00028015,2]
[339034716,1727156973231,-51.51059896,0.00028032,2]
[339034717,1727156973253,-250.0,0.00028092,2]
[339034718,1727156973274,-221.40794724,0.00028168,2]
[339034860,1727157038638,-3660.0656707,0.00027769,2]
[339034861,1727157038649,-28.59205276,0.00028168,2]
[339034862,1727157038658,-250.0,0.00028245,2]
[339034863,1727157038667,-250.0,0.00028322,2]
[339034864,1727157038677,-250.0,0.00028399,2]
[339034865,1727157038687,-250.0,0.00028476,2]
[339034866,1727157038696,-250.0,0.00028553,2]
[339034867,1727157038706,-250.0,0.00028629,2]
[339034868,1727157038715,-250.0,0.00028706,2]
[339034869,1727157038727,-398.374328,0.00028717,2]
[339034870,1727157038736,-250.0,0.00028783,2]
[339034871,1727157038746,-250.0,0.0002886,2]
[339034872,1727157038756,-300.0,0.00028935,2]
[339034873,1727157038765,-253.0,0.00028936,2]
[339034874,1727157038775,-250.0,0.00028937,2]
[339034875,1727157038785,-250.0,0.00029014,2]
[339034876,1727157038794,-250.0,0.0002909,2]
[339034877,1727157038804,-234.6,0.00029155,4]
[339034878,1727157038813,-250.0,0.00029167,2]
[339034879,1727157038823,-172.473749,0.00029199,2]
[339034880,1727157038833,-250.0,0.00029244,2]
[339034881,1727157038843,-250.0,0.00029321,2]
[339034882,1727157038853,-266.63984058,0.00029389,2]
[339034883,1727157038862,-250.0,0.00029398,2]
[339034884,1727157038872,-250.0,0.00029474,2]
[339034885,1727157038881,-150.67504188,0.00029576,2]
[339034886,1727157038891,-407.16506125,0.00029615,2]
[339034887,1727157038900,-1264.22486685,0.00029889,2]
[339034888,1727157038910,-212.77213376,0.000299,2]
[339034889,1727157038920,-503.93481009,0.00029973,5]
[339034890,1727157038931,-500.0,0.00029973,5]
[339034891,1727157038941,-327.40521494,0.00029973,5]
[339034892,1727157038950,-269.1,0.0002998,3]
[339034893,1727157038960,-718.85,0.0002998,3]
[339034894,1727157038969,-599.04,0.0002998,3]
[339034895,1727157038979,-499.2,0.0002998,3]
[339034896,1727157038988,-500.0,0.00029989,2]
[339034897,1727157038997,-183.1194683,0.00029989,2]
[339034898,1727157039007,-181.31052925,0.00029989,2]
[339034899,1727157039016,-164.2682957,0.00029989,2]
[339034900,1727157039025,-331.51925749,0.00029989,2]
[339034901,1727157039036,-500.0,0.00029989,2]
[339034902,1727157039045,-473.81387896,0.00029989,2]
[339034903,1727157039054,-500.0,0.00029989,2]
[339034904,1727157039063,-500.0,0.00029989,2]
[339034905,1727157039072,-133553.366438,0.0002999,4]
[339034906,1727157039081,-19436.5754524,0.0002999,4]
[339034907,1727157039091,-77685.96911646,0.0003,3]
[339034908,1727157039100,-151.0,0.0003,120]
[339034909,1727157039110,-151.0,0.0003,120]
[339034910,1727157039119,-7886.39557253,0.0003,10]
[339034911,1727157039128,-438.0,0.0003,2]
[339034912,1727157039138,-276.0,0.0003,2]
[339034913,1727157039148,-529.90622451,0.0003,3]
[339034914,1727157039157,-235.0,0.0003,2]
[339034915,1727157039167,-151.0,0.0003,2]
[339034916,1727157039176,-234.6,0.00030295,5]
[339034917,1727157039187,-438.0,0.00030411,2]
[339034918,1727157039197,-276.0,0.00030411,2]
[339034919,1727157039206,-151.0,0.00030411,2]
[339034920,1727157039216,-501.26966975,0.00030521,5]
[339034921,1727157039226,-306.0,0.00030557,2]
[339034922,1727157039235,-212.77213372,0.00030567,2]
[339034923,1727157039244,-153.0,0.00030572,2]
[339034924,1727157039254,-153.0,0.00030572,2]
[339034925,1727157039263,-153.0,0.00030572,2]
[339034926,1727157039272,-306.0,0.00030613,2]
[339034927,1727157039281,-133553.366438,0.00030645,4]
[339034928,1727157039291,-19436.5754524,0.00030645,4]
[339034929,1727157039300,-330.641442,0.00030655,7]
[339034930,1727157039309,-330.641442,0.00030655,7]
[339034931,1727157039319,-533.200432,0.00030655,7]
[339034932,1727157039328,-533.200432,0.00030655,7]
[339034933,1727157039338,-330.641442,0.00030655,7]
[339034934,1727157039348,-330.641442,0.00030655,7]
[339034935,1727157039357,-533.200432,0.00030655,7]
[339034936,1727157039366,-533.200432,0.00030655,7]
[339034937,1727157039376,-151.0,0.00030655,7]
[339034938,1727157039385,-151.0,0.00030655,7]
[339034939,1727157039394,-151.0,0.00030655,7]
[339034940,1727157039409,-151.0,0.00030655,7]
[339034941,1727157039425,-151.0,0.00030655,7]
[339034942,1727157039440,-151.0,0.00030655,7]
[339034943,1727157039452,-151.0,0.00030655,7]
[339034944,1727157039467,-151.0,0.00030655,7]
[339034945,1727157039481,-151.0,0.00030655,7]
[339034946,1727157039497,-151.0,0.00030655,7]
[339034947,1727157039511,-151.0,0.00030655,7]
[339034948,1727157039526,-151.0,0.00030655,7]
[339034949,1727157039541,-967.066354,0.00030655,7]
[339034950,1727157039554,-967.066354,0.00030655,7]
[339034951,1727157039567,-347.287964,0.00030655,7]
[339034952,1727157039580,-347.287964,0.00030655,7]
[339034953,1727157039594,-967.066354,0.00030655,7]
[339034954,1727157039607,-967.066354,0.00030655,7]
[339034955,1727157039617,-347.287964,0.00030655,7]
[339034956,1727157039629,-347.287964,0.00030655,7]
[339034957,1727157039642,-151.0,0.00030655,7]
[339034958,1727157039656,-151.0,0.00030655,7]
[339034959,1727157039669,-151.0,0.00030655,7]
[339034960,1727157039683,-151.0,0.00030655,7]
[339034961,1727157039698,-184.761098,0.00030655,7]
[339034962,1727157039714,-184.761098,0.00030655,7]
[339034963,1727157039725,-184.761098,0.00030655,7]
[339034964,1727157039735,-184.761098,0.00030655,7]
[339034965,1727157039747,-2754.748959,0.00030655,7]
[339034966,1727157039760,-2754.748959,0.00030655,7]
[339034967,1727157039774,-2754.748959,0.00030655,7]
[339034968,1727157039786,-2754.748959,0.00030655,7]
[339034969,1727157039800,-1455.188216,0.00030655,7]
[339034970,1727157039811,-1455.188216,0.00030655,7]
[339034971,1727157039825,-1455.188216,0.00030655,7]
[339034972,1727157039836,-1455.188216,0.00030655,7]
[339034973,1727157039847,-151.0,0.00030655,7]
[339034974,1727157039859,-151.0,0.00030655,7]
[339034975,1727157039871,-152.754704,0.00030655,7]
[339034976,1727157039883,-272.651362,0.00030655,7]
[339034977,1727157039895,-151.0,0.00030655,7]
[339034978,1727157039907,-151.0,0.00030655,7]
[339034979,1727157039918,-151.0,0.00030655,7]
[339034980,1727157039930,-151.0,0.00030655,7]
[339034981,1727157039942,-151.0,0.00030655,7]
[339034983,1727157039953,-151.872368,0.00030655,7]
[339034984,1727157039964,-151.0,0.00030655,7]
[339034985,1727157039977,-151.0,0.00030655,7]
[339034986,1727157039989,-151.0,0.00030655,7]
[339034987,1727157040000,-151.0,0.00030655,7]
[339034988,1727157040012,-151.0,0.00030655,7]
[339034989,1727157040024,-246.38969,0.00030655,7]
[339034990,1727157040037,-151.0,0.00030655,7]
[339034991,1727157040050,-852.120959,0.00030655,7]
[339034992,1727157040061,-852.120959,0.00030655,7]
[339034993,1727157040073,-151.0,0.00030655,7]
[339034994,1727157040086,-151.0,0.00030655,7]
[339034995,1727157040097,-151.0,0.00030655,7]
[339034996,1727157040110,-151.0,0.00030655,7]
[339034997,1727157040122,-438.0,0.00030685,2]
[339034998,1727157040134,-156.80549832,0.000308,2]
[339034999,1727157040147,-438.0,0.00030959,2]
[339035000,1727157040159,-172.473749,0.00031062,2]
[339035001,1727157040170,-420.0,0.0003122,2]
[339035002,1727157040182,-438.0,0.00031233,2]
[339035003,1727157040194,-212.77213372,0.00031235,2]
[339035004,1727157040205,-500.0,0.00031373,5]
[339035005,1727157040217,-66776.683219,0.00031384,4]
[339035006,1727157040229,-9718.28772619,0.00031384,4]
[339035007,1727157040241,-151.0,0.00031384,7]
[339035008,1727157040252,-852.120959,0.00031384,7]
[339035009,1727157040264,-852.120959,0.00031384,7]
[339035010,1727157040275,-151.0,0.00031384,7]
[339035011,1727157040287,-151.0,0.00031384,7]
[339035012,1727157040298,-151.0,0.00031384,7]
[339035013,1727157040310,-151.0,0.00031384,7]
[339035014,1727157040321,-153.0,0.00031394,2]
[339035015,1727157040333,-153.0,0.00031394,2]
[339035016,1727157040344,-153.0,0.00031394,2]
[339035017,1727157040356,-153.0,0.00031394,2]
[339035018,1727157040368,-153.0,0.00031394,2]
[339035019,1727157040380,-153.0,0.00031394,2]
[339035020,1727157040392,-234.6,0.00031436,5]
[339035021,1727157040522,-19436.5754524,0.0003146,4]
[339035022,1727157040532,-330.641442,0.0003147,7]
[339035023,1727157040541,-330.641442,0.0003147,7]
[339035024,1727157040551,-533.200432,0.0003147,7]
[339035025,1727157040560,-533.200432,0.0003147,7]
[339035026,1727157040569,-330.641442,0.0003147,7]
[339035027,1727157040578,-330.641442,0.0003147,7]
[339035028,1727157040587,-533.200432,0.0003147,7]
[339035029,1727157040597,-533.200432,0.0003147,7]
[339035030,1727157040606,-151.0,0.0003147,7]
[339035031,1727157040616,-156.782295,0.0003147,7]
[339035032,1727157040625,-151.0,0.0003147,7]
[339035033,1727157040634,-151.0,0.0003147,7]
[339035034,1727157040643,-263.583155,0.0003147,7]
[339035035,1727157040653,-151.0,0.0003147,7]
[339035036,1727157040662,-151.0,0.0003147,7]
[339035037,1727157040671,-151.0,0.0003147,7]
[339035038,1727157040681,-151.0,0.0003147,7]
[339035039,1727157040691,-967.066354,0.0003147,7]
[339035040,1727157040701,-967.066354,0.0003147,7]
[339035041,1727157040711,-347.287964,0.0003147,7]
[339035042,1727157040720,-967.066354,0.0003147,7]
[339035043,1727157040730,-347.287964,0.0003147,7]
[339035044,1727157040739,-967.066354,0.0003147,7]
[339035045,1727157040749,-347.287964,0.0003147,7]
[339035046,1727157040758,-347.287964,0.0003147,7]
[339035047,1727157040768,-151.0,0.0003147,7]
[339035048,1727157040779,-151.0,0.0003147,7]
[339035049,1727157040788,-156.540564,0.0003147,7]
[339035050,1727157040798,-184.761098,0.0003147,7]
[339035051,1727157040808,-184.761098,0.0003147,7]
[339035052,1727157040817,-184.761098,0.0003147,7]
[339035053,1727157040827,-184.761098,0.0003147,7]
[339035054,1727157040836,-2754.748959,0.0003147,7]
[339035055,1727157040846,-2754.748959,0.0003147,7]
[339035056,1727157040856,-2754.748959,0.0003147,7]
[339035057,1727157040865,-2754.748959,0.0003147,7]
[339035058,1727157040875,-1455.188216,0.0003147,7]
[339035059,1727157040885,-1455.188216,0.0003147,7]
[339035060,1727157040895,-1455.188216,0.0003147,7]
[339035061,1727157040906,-1455.188216,0.0003147,7]
[339035062,1727157040915,-157.97917,0.0003147,7]
[339035063,1727157040925,-151.0,0.0003147,7]
[339035064,1727157040935,-151.0,0.0003147,7]
[339035065,1727157040947,-151.0,0.0003147,7]
[339035066,1727157040956,-151.0,0.0003147,7]
[339035067,1727157040967,-151.0,0.0003147,7]
[339035068,1727157040976,-151.0,0.0003147,7]
[339035069,1727157040987,-151.0,0.0003147,7]
[339035070,1727157040996,-852.120959,0.0003147,7]
[339035071,1727157041006,-852.120959,0.0003147,7]
[339035072,1727157041016,-151.0,0.0003147,7]
[339035073,1727157041026,-151.0,0.0003147,7]
[339035074,1727157041038,-151.0,0.0003147,7]
[339035075,1727157041048,-20025.68733985,0.0003148,3]
[339035076,1727157041058,-151.862581,0.0003148,7]
[339035077,1727157041067,-151.0,0.0003148,2]
[339035078,1727157041077,-151.0,0.0003148,7]
[339035079,1727157041087,-151.0,0.0003148,7]
[339035080,1727157041096,-151.165416,0.0003148,7]
[339035081,1727157041105,-151.0,0.0003148,7]
[339035082,1727157041113,-151.0,0.0003148,7]
[339035083,1727157041123,-151.0,0.0003148,7]
[339035084,1727157041132,-151.0,0.0003148,7]
[339035085,1727157041141,-151.0,0.0003148,7]
[339035086,1727157041151,-151.0,0.0003148,7]
[339035087,1727157041161,-151.0,0.0003148,7]
[339035088,1727157041170,-151.0,0.0003148,7]
[339035089,1727157041180,-151.0,0.0003148,7]
[339035090,1727157041190,-151.0,0.0003148,7]
[339035091,1727157041200,-311.31112,0.0003148,7]
[339035092,1727157041209,-311.31112,0.0003148,7]
[339035093,1727157041219,-151.0,0.0003148,7]
[339035094,1727157041229,-151.0,0.0003148,7]
[339035095,1727157041238,-151.0,0.0003148,7]
[339035096,1727157041247,-967.066354,0.0003148,7]
[339035097,1727157041258,-347.287964,0.0003148,7]
[339035098,1727157041267,-967.066354,0.0003148,7]
[339035099,1727157041276,-347.287964,0.0003148,7]
[339035100,1727157041286,-151.0,0.0003148,7]
[339035101,1727157041295,-184.761098,0.0003148,7]
[339035102,1727157041305,-184.761098,0.0003148,7]
[339035103,1727157041314,-2754.748959,0.0003148,7]
[339035104,1727157041323,-2754.748959,0.0003148,7]
[339035105,1727157041333,-1455.188216,0.0003148,7]
[339035106,1727157041342,-1455.188216,0.0003148,7]
[339035107,1727157041352,-151.0,0.0003148,7]
[339035108,1727157041361,-151.0,0.0003148,7]